[Event "GrandPrix_30.05"]
[Site "Chess.com"]
[Date "2020.05.30"]
[Round "7"]
[White "ly4o"]
[Black "DinaBelenkaya"]
[Result "1-0"]
[WhiteElo "2021"]
[BlackElo "1632"]
[TimeControl "600+2"]
[EndTime "11:22:25 PDT"]
[Termination "ly4o won by checkmate"]

1. d4 {[%clk 0:10:01.9]} 1... Nf6 {[%clk 0:09:59.2]} 2. c4 {[%clk 0:10:02.5]}
2... c5 {[%clk 0:09:58.8]} 3. d5 {[%clk 0:10:03.4]} 3... e5 {[%clk 0:09:56.7]}
4. Nc3 {[%clk 0:10:02.9]} 4... d6 {[%clk 0:09:57]} 5. e4 {[%clk 0:10:03.9]} 5...
Be7 {[%clk 0:09:53.8]} 6. h3 {[%clk 0:10:02.6]} 6... Nbd7 {[%clk 0:09:47.5]} 7.
Bd3 {[%clk 0:10:03.1]} 7... Nf8 {[%clk 0:09:48.1]} 8. Be3 {[%clk 0:10:02.3]}
8... Ng6 {[%clk 0:09:48.8]} 9. Nge2 {[%clk 0:10:03]} 9... Bd7 {[%clk 0:09:02.1]}
10. Qd2 {[%clk 0:09:55.9]} 10... a6 {[%clk 0:08:49.5]} 11. a4 {[%clk 0:09:55.8]}
11... Qc8 {[%clk 0:08:36.8]} 12. a5 {[%clk 0:09:42]} 12... Nh4 {[%clk
0:08:29.7]} 13. Kf1 {[%clk 0:09:40.3]} 13... Bd8 {[%clk 0:08:13.9]} 14. Ng3
{[%clk 0:09:27.7]} 14... Bc7 {[%clk 0:06:08.1]} 15. Bg5 {[%clk 0:09:26.7]} 15...
Ng6 {[%clk 0:05:57.1]} 16. Bxf6 {[%clk 0:09:27.4]} 16... gxf6 {[%clk 0:05:56.4]}
17. Nh5 {[%clk 0:09:25]} 17... Qd8 {[%clk 0:05:46.5]} 18. Bc2 {[%clk 0:09:19.4]}
18... Bxa5 {[%clk 0:04:18.9]} 19. Qh6 {[%clk 0:09:18]} 19... Bxc3 {[%clk
0:02:51.1]} 20. bxc3 {[%clk 0:09:19.9]} 20... Qe7 {[%clk 0:02:50.3]} 21. Ng7+
{[%clk 0:09:19.1]} 21... Kd8 {[%clk 0:02:45.1]} 22. Nh5 {[%clk 0:09:19.7]} 22...
Kc7 {[%clk 0:02:40.4]} 23. Rb1 {[%clk 0:09:12.8]} 23... Rhg8 {[%clk 0:02:19.7]}
24. g3 {[%clk 0:09:11.6]} 24... a5 {[%clk 0:02:15.6]} 25. Bd1 {[%clk 0:09:10.7]}
25... a4 {[%clk 0:02:03.3]} 26. Bg4 {[%clk 0:09:11.4]} 26... Be8 {[%clk
0:00:58.5]} 27. Kg2 {[%clk 0:09:06]} 27... Ra5 {[%clk 0:00:17.9]} 28. Qd2 {[%clk
0:09:05.5]} 28... b6 {[%clk 0:00:12.7]} 29. Rb2 {[%clk 0:08:58.2]} 29... Qd8
{[%clk 0:00:12.9]} 30. Rhb1 {[%clk 0:08:58.1]} 30... Ra6 {[%clk 0:00:14.1]} 31.
Kh2 {[%clk 0:08:54.8]} 31... Kb7 {[%clk 0:00:12.8]} 32. Qc1 {[%clk 0:08:49.8]}
32... Ka7 {[%clk 0:00:13.7]} 33. Ra2 {[%clk 0:08:49.9]} 33... Ra5 {[%clk
0:00:10.5]} 34. Rba1 {[%clk 0:08:37.8]} 34... Nf8 {[%clk 0:00:10.7]} 35. Bd1
{[%clk 0:08:34.3]} 35... Rg5 {[%clk 0:00:07]} 36. h4 {[%clk 0:08:30]} 36... Rxh5
{[%clk 0:00:05.5]} 37. Bxh5 {[%clk 0:08:31.9]} 37... Nd7 {[%clk 0:00:06.4]} 38.
Bd1 {[%clk 0:08:32.5]} 38... Nb8 {[%clk 0:00:07.4]} 39. Bxa4 {[%clk 0:08:33]}
39... Bxa4 {[%clk 0:00:08]} 40. Rxa4 {[%clk 0:08:34.9]} 40... Na6 {[%clk
0:00:06.5]} 41. Rxa5 {[%clk 0:08:34.4]} 41... bxa5 {[%clk 0:00:08.1]} 42. Qa3
{[%clk 0:08:35.9]} 42... Qb6 {[%clk 0:00:04.1]} 43. Qxa5 {[%clk 0:08:35.6]}
43... Qxa5 {[%clk 0:00:05.5]} 44. Rxa5 {[%clk 0:08:36.2]} 44... Kb6 {[%clk
0:00:07.2]} 45. Rb5+ {[%clk 0:08:34.9]} 45... Kc7 {[%clk 0:00:07.9]} 46. h5
{[%clk 0:08:33.6]} 46... h6 {[%clk 0:00:08.2]} 47. Kh3 {[%clk 0:08:34.7]} 47...
Nb8 {[%clk 0:00:09.4]} 48. Rxb8 {[%clk 0:08:27.6]} 48... Kxb8 {[%clk 0:00:10.3]}
49. Kg4 {[%clk 0:08:29.5]} 49... Kc7 {[%clk 0:00:11.2]} 50. Kf5 {[%clk
0:08:31.4]} 50... Kd7 {[%clk 0:00:12.4]} 51. Kxf6 {[%clk 0:08:33.3]} 51... Ke8
{[%clk 0:00:13.8]} 52. Kg7 {[%clk 0:08:30.5]} 52... Ke7 {[%clk 0:00:14.3]} 53.
Kxh6 {[%clk 0:08:31.6]} 53... Kf8 {[%clk 0:00:13.6]} 54. Kg5 {[%clk 0:08:32.2]}
54... Kg7 {[%clk 0:00:14.8]} 55. Kf5 {[%clk 0:08:33.3]} 55... Kh6 {[%clk
0:00:13.3]} 56. g4 {[%clk 0:08:34]} 56... Kg7 {[%clk 0:00:11.2]} 57. g5 {[%clk
0:08:34.5]} 57... Kh7 {[%clk 0:00:12]} 58. Kf6 {[%clk 0:08:35.3]} 58... Kg8
{[%clk 0:00:12.2]} 59. Ke7 {[%clk 0:08:34.8]} 59... Kg7 {[%clk 0:00:09.2]} 60.
Kxd6 {[%clk 0:08:35.5]} 60... f5 {[%clk 0:00:09.9]} 61. Kxe5 {[%clk 0:08:33.6]}
61... fxe4 {[%clk 0:00:11]} 62. Kxe4 {[%clk 0:08:35.5]} 62... Kh7 {[%clk
0:00:12]} 63. d6 {[%clk 0:08:34.2]} 63... Kg7 {[%clk 0:00:13.4]} 64. d7 {[%clk
0:08:33.4]} 64... Kh7 {[%clk 0:00:15.3]} 65. d8=Q {[%clk 0:08:32.7]} 65... Kg7
{[%clk 0:00:16.5]} 66. Qd7+ {[%clk 0:08:32.3]} 66... Kh8 {[%clk 0:00:17.3]} 67.
h6 {[%clk 0:08:29.9]} 67... Kg8 {[%clk 0:00:19.2]} 68. Qg7# {[%clk 0:08:30.8]}
1-0

[Event "GrandPrix_30.05"]
[Site "Chess.com"]
[Date "2020.05.30"]
[Round "7"]
[White "VojtechPlat"]
[Black "Bosiocic"]
[Result "1-0"]
[WhiteElo "2348"]
[BlackElo "2592"]
[TimeControl "600+2"]
[EndTime "11:22:33 PDT"]
[Termination "VojtechPlat won by resignation"]

1. e4 {[%clk 0:10:01.9]} 1... d6 {[%clk 0:10:01.4]} 2. d4 {[%clk 0:10:02.3]}
2... Nf6 {[%clk 0:10:02.7]} 3. Nc3 {[%clk 0:10:03.1]} 3... e5 {[%clk 0:10:03.9]}
4. Nf3 {[%clk 0:10:03.7]} 4... Nbd7 {[%clk 0:10:04.8]} 5. Bc4 {[%clk 0:10:04.4]}
5... Be7 {[%clk 0:10:05.8]} 6. a4 {[%clk 0:10:05.6]} 6... O-O {[%clk 0:10:06.9]}
7. a5 {[%clk 0:10:06.7]} 7... exd4 {[%clk 0:10:02.4]} 8. Qxd4 {[%clk 0:10:05.9]}
8... c6 {[%clk 0:09:41.7]} 9. O-O {[%clk 0:10:05.7]} 9... Nc5 {[%clk 0:09:42.2]}
10. h3 {[%clk 0:09:48.5]} 10... Be6 {[%clk 0:09:40.9]} 11. Rd1 {[%clk
0:09:41.9]} 11... Re8 {[%clk 0:09:35.2]} 12. Bf4 {[%clk 0:09:32.2]} 12... Bf8
{[%clk 0:09:17.7]} 13. Bf1 {[%clk 0:08:27.6]} 13... d5 {[%clk 0:08:52.8]} 14.
exd5 {[%clk 0:08:27.5]} 14... Nxd5 {[%clk 0:08:53.6]} 15. b4 {[%clk 0:08:20.2]}
15... Nd7 {[%clk 0:08:36.5]} 16. Nxd5 {[%clk 0:07:55.7]} 16... Bxd5 {[%clk
0:08:34]} 17. c4 {[%clk 0:06:36.6]} 17... Bxf3 {[%clk 0:08:33.5]} 18. gxf3
{[%clk 0:06:37]} 18... Nf6 {[%clk 0:08:32.1]} 19. Qxd8 {[%clk 0:06:30.4]} 19...
Raxd8 {[%clk 0:08:33.4]} 20. b5 {[%clk 0:05:52]} 20... Rxd1 {[%clk 0:08:25.8]}
21. Rxd1 {[%clk 0:05:52.1]} 21... cxb5 {[%clk 0:08:27.1]} 22. cxb5 {[%clk
0:05:52.6]} 22... Bc5 {[%clk 0:08:20.6]} 23. Bc4 {[%clk 0:05:21.3]} 23... h6
{[%clk 0:07:51.1]} 24. Kf1 {[%clk 0:05:13]} 24... Kf8 {[%clk 0:06:47.7]} 25. Ba2
{[%clk 0:05:06]} 25... Bb4 {[%clk 0:04:48.7]} 26. a6 {[%clk 0:04:39.9]} 26...
bxa6 {[%clk 0:04:46.5]} 27. bxa6 {[%clk 0:04:40.7]} 27... Rc8 {[%clk 0:04:37.6]}
28. Rb1 {[%clk 0:04:26.3]} 28... Rc2 {[%clk 0:04:04.9]} 29. Bb3 {[%clk
0:04:10.7]} 29... Rc8 {[%clk 0:03:53.5]} 30. Bxf7 {[%clk 0:03:33.9]} 30... Kxf7
{[%clk 0:02:25.6]} 31. Rxb4 {[%clk 0:03:33.4]} 31... g5 {[%clk 0:02:21.7]} 32.
Rb7+ {[%clk 0:03:31.8]} 32... Ke6 {[%clk 0:02:21.9]} 33. Be3 {[%clk 0:03:31.4]}
33... Rc1+ {[%clk 0:02:20.1]} 34. Bxc1 {[%clk 0:03:31.8]} 1-0

[Event "GrandPrix_30.05"]
[Site "Chess.com"]
[Date "2020.05.30"]
[Round "7"]
[White "Alex_Molchanov"]
[Black "eristeski7"]
[Result "1-0"]
[WhiteElo "2068"]
[BlackElo "2125"]
[TimeControl "600+2"]
[EndTime "11:22:44 PDT"]
[Termination "Alex_Molchanov won by resignation"]

1. c4 {[%clk 0:10:01.9]} 1... g6 {[%clk 0:10:00.4]} 2. g3 {[%clk 0:10:01]} 2...
Bg7 {[%clk 0:10:01.7]} 3. Bg2 {[%clk 0:10:02.4]} 3... d6 {[%clk 0:10:03.2]} 4.
Nc3 {[%clk 0:10:02.4]} 4... Nf6 {[%clk 0:10:04.2]} 5. e3 {[%clk 0:09:58]} 5...
O-O {[%clk 0:10:02.4]} 6. Nge2 {[%clk 0:09:59.4]} 6... e5 {[%clk 0:09:58]} 7. d3
{[%clk 0:09:57.5]} 7... c6 {[%clk 0:09:56.9]} 8. O-O {[%clk 0:09:57.4]} 8... Na6
{[%clk 0:09:19]} 9. e4 {[%clk 0:09:40]} 9... Nc5 {[%clk 0:08:55.8]} 10. h3
{[%clk 0:09:19.4]} 10... Ne6 {[%clk 0:07:37.5]} 11. f4 {[%clk 0:09:12.2]} 11...
Nd4 {[%clk 0:07:30.7]} 12. Nxd4 {[%clk 0:08:58.1]} 12... exd4 {[%clk 0:07:32.6]}
13. Ne2 {[%clk 0:08:59.6]} 13... c5 {[%clk 0:07:32.3]} 14. g4 {[%clk 0:08:57.9]}
14... Nd7 {[%clk 0:07:28.6]} 15. f5 {[%clk 0:08:57.7]} 15... Be5 {[%clk
0:07:20.6]} 16. Bh6 {[%clk 0:08:33.4]} 16... Qh4 {[%clk 0:07:03.4]} 17. Qd2
{[%clk 0:08:10]} 17... Qe7 {[%clk 0:06:59.4]} 18. fxg6 {[%clk 0:06:09.2]} 18...
hxg6 {[%clk 0:06:57.4]} 19. Bxf8 {[%clk 0:06:06.9]} 19... Nxf8 {[%clk
0:06:59.3]} 20. Rf2 {[%clk 0:05:59]} 20... Be6 {[%clk 0:06:09.8]} 21. Raf1
{[%clk 0:05:57.6]} 21... Nh7 {[%clk 0:06:10.3]} 22. Nf4 {[%clk 0:05:45.3]} 22...
Rf8 {[%clk 0:06:07.8]} 23. a3 {[%clk 0:05:15.4]} 23... Bc8 {[%clk 0:05:13.8]}
24. Qe1 {[%clk 0:04:39.4]} 24... Ng5 {[%clk 0:04:25.4]} 25. Nxg6 {[%clk
0:04:28.2]} 25... fxg6 {[%clk 0:04:25.4]} 26. Rxf8+ {[%clk 0:04:28.8]} 26...
Qxf8 {[%clk 0:04:27.3]} 27. Rxf8+ {[%clk 0:04:29]} 27... Kxf8 {[%clk 0:04:29.2]}
28. Qa5 {[%clk 0:04:18.9]} 28... Ne6 {[%clk 0:04:21.3]} 29. Qxa7 {[%clk
0:04:11.9]} 29... Ke8 {[%clk 0:04:21]} 30. b4 {[%clk 0:04:02.2]} 30... g5 {[%clk
0:04:20.5]} 31. b5 {[%clk 0:03:55.4]} 31... Nc7 {[%clk 0:03:40.2]} 32. a4 {[%clk
0:03:36.6]} 32... Ne6 {[%clk 0:03:36.3]} 33. Qb6 {[%clk 0:03:14]} 33... Kd7
{[%clk 0:03:28.7]} 34. a5 {[%clk 0:02:54.2]} 34... Nc7 {[%clk 0:03:27.6]} 35. h4
{[%clk 0:02:51.1]} 35... gxh4 {[%clk 0:03:26.2]} 36. g5 {[%clk 0:02:51.8]} 36...
Kd8 {[%clk 0:03:20.9]} 37. g6 {[%clk 0:02:47.6]} 37... Bg7 {[%clk 0:03:13.9]}
38. Qxd6+ {[%clk 0:02:47.1]} 1-0

[Event "GrandPrix_30.05"]
[Site "Chess.com"]
[Date "2020.05.30"]
[Round "7"]
[White "payto1"]
[Black "Novoselski"]
[Result "0-1"]
[WhiteElo "2181"]
[BlackElo "2325"]
[TimeControl "600+2"]
[EndTime "11:22:45 PDT"]
[Termination "Novoselski won by resignation"]

1. d4 {[%clk 0:09:59.5]} 1... e6 {[%clk 0:09:59]} 2. c4 {[%clk 0:09:59.8]} 2...
f5 {[%clk 0:09:58.6]} 3. g3 {[%clk 0:09:58.2]} 3... Nf6 {[%clk 0:09:59.9]} 4.
Bg2 {[%clk 0:09:59.3]} 4... Be7 {[%clk 0:10:01]} 5. Nc3 {[%clk 0:09:59.9]} 5...
O-O {[%clk 0:10:01.7]} 6. Nf3 {[%clk 0:10:01.2]} 6... d6 {[%clk 0:10:02.1]} 7.
O-O {[%clk 0:10:02.3]} 7... Ne4 {[%clk 0:10:02.8]} 8. Qc2 {[%clk 0:09:06.4]}
8... Nxc3 {[%clk 0:10:02.5]} 9. bxc3 {[%clk 0:09:08.3]} 9... Nc6 {[%clk
0:10:00.1]} 10. e4 {[%clk 0:09:08.8]} 10... e5 {[%clk 0:10:00.2]} 11. Rd1 {[%clk
0:08:03.5]} 11... Qe8 {[%clk 0:09:58.9]} 12. Ba3 {[%clk 0:07:16.4]} 12... f4
{[%clk 0:09:47.4]} 13. c5 {[%clk 0:06:59.4]} 13... Kh8 {[%clk 0:09:33.2]} 14.
cxd6 {[%clk 0:06:47.7]} 14... cxd6 {[%clk 0:09:31.5]} 15. d5 {[%clk 0:06:39.4]}
15... Nb8 {[%clk 0:09:21.9]} 16. c4 {[%clk 0:06:30.9]} 16... b6 {[%clk
0:09:21.5]} 17. Bc1 {[%clk 0:06:20.2]} 17... Qh5 {[%clk 0:09:07.5]} 18. Ne1
{[%clk 0:05:36.3]} 18... f3 {[%clk 0:08:17.5]} 19. Bf1 {[%clk 0:05:18.6]} 19...
Nd7 {[%clk 0:08:04]} 20. Rd3 {[%clk 0:04:14.3]} 20... Nc5 {[%clk 0:07:58.7]} 21.
Rc3 {[%clk 0:04:09.7]} 21... Bd7 {[%clk 0:07:45.3]} 22. Be3 {[%clk 0:04:03.8]}
22... Ba4 {[%clk 0:07:24.7]} 23. Qb1 {[%clk 0:04:03.7]} 23... Rf6 {[%clk
0:07:12.7]} 24. Bxc5 {[%clk 0:03:09.5]} 24... dxc5 {[%clk 0:07:10]} 25. Nxf3
{[%clk 0:01:47.3]} 25... Rxf3 {[%clk 0:07:03.9]} 26. Be2 {[%clk 0:01:47.1]}
26... Rxg3+ {[%clk 0:06:53.1]} 27. hxg3 {[%clk 0:01:25.9]} 27... Qxe2 {[%clk
0:06:51.9]} 28. Qd3 {[%clk 0:01:25.7]} 28... Qg4 {[%clk 0:06:27.1]} 29. d6
{[%clk 0:01:13.5]} 29... Bf6 {[%clk 0:06:21.4]} 30. Qd5 {[%clk 0:01:10.5]} 30...
Rd8 {[%clk 0:06:18.8]} 31. Ra3 {[%clk 0:01:07.2]} 31... Qd7 {[%clk 0:05:48.2]}
32. Rd1 {[%clk 0:00:59.5]} 32... Bxd1 {[%clk 0:05:44.1]} 33. Qxd1 {[%clk
0:01:01.4]} 33... Qxd6 {[%clk 0:05:43.9]} 34. Qxd6 {[%clk 0:01:01.6]} 34... Rxd6
{[%clk 0:05:43.9]} 35. Rxa7 {[%clk 0:01:03.5]} 35... h5 {[%clk 0:05:43.2]} 36.
Rb7 {[%clk 0:01:03.6]} 36... Kh7 {[%clk 0:05:41.8]} 37. Kg2 {[%clk 0:01:03.4]}
37... Kh6 {[%clk 0:05:41.6]} 38. a4 {[%clk 0:01:01.2]} 38... Kg5 {[%clk
0:05:34.2]} 39. Kf3 {[%clk 0:01:01.3]} 39... Rd3+ {[%clk 0:05:26.4]} 40. Kg2
{[%clk 0:01:01]} 40... Ra3 {[%clk 0:05:25.4]} 41. Rxb6 {[%clk 0:01:00.6]} 41...
Rxa4 {[%clk 0:05:24.9]} 0-1

[Event "GrandPrix_30.05"]
[Site "Chess.com"]
[Date "2020.05.30"]
[Round "7"]
[White "weplaychess09"]
[Black "Alex_Krayz"]
[Result "0-1"]
[WhiteElo "2073"]
[BlackElo "2205"]
[TimeControl "600+2"]
[EndTime "11:22:57 PDT"]
[Termination "Alex_Krayz won by checkmate"]

1. d4 {[%clk 0:10:01.9]} 1... Nf6 {[%clk 0:09:59.8]} 2. c4 {[%clk 0:10:03.4]}
2... e6 {[%clk 0:09:59.9]} 3. Nf3 {[%clk 0:10:04]} 3... b6 {[%clk 0:09:59.9]} 4.
a3 {[%clk 0:10:04.5]} 4... Bb7 {[%clk 0:09:55.7]} 5. Bf4 {[%clk 0:10:05.3]} 5...
Be7 {[%clk 0:09:45.6]} 6. Nc3 {[%clk 0:09:55.9]} 6... d6 {[%clk 0:09:43.4]} 7.
d5 {[%clk 0:09:12.3]} 7... e5 {[%clk 0:09:42.8]} 8. Bg3 {[%clk 0:09:10.3]} 8...
Nh5 {[%clk 0:09:30.8]} 9. e4 {[%clk 0:09:04.6]} 9... g6 {[%clk 0:09:02.6]} 10.
Be2 {[%clk 0:09:01]} 10... Nd7 {[%clk 0:08:44.2]} 11. Qd2 {[%clk 0:08:23.8]}
11... Nc5 {[%clk 0:08:21]} 12. Bd1 {[%clk 0:08:03.8]} 12... a5 {[%clk
0:08:06.8]} 13. Bc2 {[%clk 0:07:39.9]} 13... Bc8 {[%clk 0:07:37.3]} 14. O-O
{[%clk 0:07:12.1]} 14... a4 {[%clk 0:07:25.3]} 15. Rae1 {[%clk 0:06:57.1]} 15...
Bg4 {[%clk 0:07:09.8]} 16. Bd1 {[%clk 0:06:54.5]} 16... Bd7 {[%clk 0:06:42.9]}
17. Kh1 {[%clk 0:05:59.6]} 17... O-O {[%clk 0:06:28.2]} 18. Ng1 {[%clk
0:05:25.8]} 18... Bg5 {[%clk 0:06:23.5]} 19. Qc2 {[%clk 0:05:20.9]} 19... Nf4
{[%clk 0:06:05.5]} 20. f3 {[%clk 0:05:11]} 20... f5 {[%clk 0:05:44]} 21. Bf2
{[%clk 0:04:55.9]} 21... Nfd3 {[%clk 0:05:10.5]} 22. Re2 {[%clk 0:04:48.1]}
22... Nxf2+ {[%clk 0:04:49.7]} 23. Rexf2 {[%clk 0:04:47.8]} 23... Be3 {[%clk
0:04:36.8]} 24. Re2 {[%clk 0:04:46.9]} 24... Bd4 {[%clk 0:04:19]} 25. Ree1
{[%clk 0:04:41.3]} 25... Qh4 {[%clk 0:04:10.9]} 26. Nge2 {[%clk 0:04:35.3]}
26... fxe4 {[%clk 0:03:57.4]} 27. Nxe4 {[%clk 0:04:32.2]} 27... Nxe4 {[%clk
0:03:52.6]} 28. fxe4 {[%clk 0:04:28.3]} 28... Bf2 {[%clk 0:03:46.2]} 29. g3
{[%clk 0:04:21.7]} 29... Qh6 {[%clk 0:03:43.2]} 30. Nc3 {[%clk 0:04:15.9]} 30...
Bxe1 {[%clk 0:03:40.7]} 31. Rxe1 {[%clk 0:04:17.8]} 31... Rf7 {[%clk 0:03:34.4]}
32. Kg2 {[%clk 0:04:12.6]} 32... Raf8 {[%clk 0:03:23.8]} 33. Qe2 {[%clk
0:04:10.2]} 33... Bh3+ {[%clk 0:03:10.1]} 34. Kg1 {[%clk 0:04:10.1]} 34... Qe3+
{[%clk 0:03:02.8]} 35. Qxe3 {[%clk 0:04:03.8]} 35... Rf1+ {[%clk 0:03:00.8]} 36.
Rxf1 {[%clk 0:02:40.5]} 36... Rxf1# {[%clk 0:02:57.1]} 0-1

[Event "GrandPrix_30.05"]
[Site "Chess.com"]
[Date "2020.05.30"]
[Round "7"]
[White "Keks2017"]
[Black "Pidzsy"]
[Result "0-1"]
[WhiteElo "2298"]
[BlackElo "2260"]
[TimeControl "600+2"]
[EndTime "11:22:59 PDT"]
[Termination "Pidzsy won by resignation"]

1. e4 {[%clk 0:10:00.6]} 1... g6 {[%clk 0:09:59.3]} 2. d4 {[%clk 0:10:00.7]}
2... Bg7 {[%clk 0:09:57.5]} 3. Nc3 {[%clk 0:10:01.2]} 3... d6 {[%clk 0:09:56.2]}
4. Be3 {[%clk 0:10:00.6]} 4... c6 {[%clk 0:09:56.6]} 5. h3 {[%clk 0:10:00.3]}
5... b5 {[%clk 0:09:57.5]} 6. g4 {[%clk 0:09:58.3]} 6... Nd7 {[%clk 0:09:58]} 7.
Bg2 {[%clk 0:09:59]} 7... Nb6 {[%clk 0:09:57.3]} 8. b3 {[%clk 0:09:58.6]} 8...
Bb7 {[%clk 0:09:50.6]} 9. Qd2 {[%clk 0:09:58.4]} 9... c5 {[%clk 0:09:48.4]} 10.
Nxb5 {[%clk 0:09:46.6]} 10... Nf6 {[%clk 0:09:42.1]} 11. f3 {[%clk 0:09:44.9]}
11... O-O {[%clk 0:09:35.3]} 12. Rd1 {[%clk 0:09:38.3]} 12... cxd4 {[%clk
0:09:32.5]} 13. Bxd4 {[%clk 0:09:21.1]} 13... e5 {[%clk 0:09:17.5]} 14. Bb2
{[%clk 0:09:03.5]} 14... d5 {[%clk 0:09:12.6]} 15. exd5 {[%clk 0:08:49.5]} 15...
Nfxd5 {[%clk 0:08:45.5]} 16. Qf2 {[%clk 0:07:52.7]} 16... Rc8 {[%clk 0:07:07.9]}
17. c4 {[%clk 0:06:48.3]} 17... Nxc4 {[%clk 0:07:07.2]} 18. bxc4 {[%clk
0:06:49]} 18... Rxc4 {[%clk 0:07:08.8]} 19. Na3 {[%clk 0:06:49.3]} 19... Rb4
{[%clk 0:06:40.4]} 20. Bc1 {[%clk 0:05:00.5]} 20... Qa5 {[%clk 0:06:08.4]} 21.
Kf1 {[%clk 0:04:56.7]} 21... Ba6+ {[%clk 0:05:57]} 22. Ne2 {[%clk 0:04:57]}
22... Nc3 {[%clk 0:05:57.6]} 23. Re1 {[%clk 0:04:54.3]} 23... Nxe2 {[%clk
0:05:40.1]} 24. Rxe2 {[%clk 0:04:54.1]} 24... Rc8 {[%clk 0:05:39.9]} 25. Qe3
{[%clk 0:04:30.8]} 25... e4 {[%clk 0:04:28.4]} 26. Bd2 {[%clk 0:04:25.8]} 26...
Bxe2+ {[%clk 0:04:17.9]} 27. Qxe2 {[%clk 0:04:08.4]} 27... Qxa3 {[%clk
0:04:08.7]} 28. Bxb4 {[%clk 0:04:06.5]} 28... Qxb4 {[%clk 0:04:05.5]} 29. Kf2
{[%clk 0:04:05.7]} 29... e3+ {[%clk 0:04:02.8]} 30. Kg1 {[%clk 0:03:37.6]} 30...
Qf4 {[%clk 0:04:01.2]} 31. Bf1 {[%clk 0:03:32.6]} 31... Be5 {[%clk 0:03:44.7]}
32. h4 {[%clk 0:03:21.6]} 32... Qg3+ {[%clk 0:03:07.8]} 33. Qg2 {[%clk
0:03:21.8]} 33... Rc2 {[%clk 0:03:05.7]} 34. Qxg3 {[%clk 0:03:20.5]} 34... Bxg3
{[%clk 0:03:07.6]} 35. Rh3 {[%clk 0:03:09.4]} 35... Bf4 {[%clk 0:02:32.4]} 0-1

[Event "GrandPrix_30.05"]
[Site "Chess.com"]
[Date "2020.05.30"]
[Round "7"]
[White "SpasKozhuharov"]
[Black "troisi"]
[Result "1-0"]
[WhiteElo "2177"]
[BlackElo "1694"]
[TimeControl "600+2"]
[EndTime "11:23:04 PDT"]
[Termination "SpasKozhuharov won by resignation"]

1. c4 {[%clk 0:09:51.5]} 1... Nf6 {[%clk 0:09:40.4]} 2. Nc3 {[%clk 0:09:51.3]}
2... e5 {[%clk 0:09:35.7]} 3. g3 {[%clk 0:09:51.4]} 3... d5 {[%clk 0:09:29.1]}
4. cxd5 {[%clk 0:09:51.2]} 4... Nxd5 {[%clk 0:09:31]} 5. Nf3 {[%clk 0:09:52.1]}
5... Nc6 {[%clk 0:09:28.9]} 6. Bg2 {[%clk 0:09:52.6]} 6... Be6 {[%clk
0:09:29.3]} 7. O-O {[%clk 0:09:52]} 7... Be7 {[%clk 0:09:30.4]} 8. d4 {[%clk
0:09:52]} 8... Bf6 {[%clk 0:06:18.1]} 9. dxe5 {[%clk 0:08:02.7]} 9... Nxc3
{[%clk 0:05:22.5]} 10. bxc3 {[%clk 0:08:04.6]} 10... Nxe5 {[%clk 0:05:18.6]} 11.
Nxe5 {[%clk 0:07:49.5]} 11... Bxe5 {[%clk 0:05:20.5]} 12. Bxb7 {[%clk
0:07:49.7]} 12... Rb8 {[%clk 0:04:05.9]} 13. Bc6+ {[%clk 0:07:47.4]} 13... Bd7
{[%clk 0:04:06.2]} 14. Qa4 {[%clk 0:07:22.2]} 14... Bxc6 {[%clk 0:04:02]} 15.
Qxc6+ {[%clk 0:07:22]} 15... Qd7 {[%clk 0:04:03.7]} 16. Qc4 {[%clk 0:07:00.7]}
16... O-O {[%clk 0:03:36.7]} 17. Be3 {[%clk 0:07:00.3]} 17... c6 {[%clk
0:03:04]} 18. Rfd1 {[%clk 0:06:58.4]} 18... Qc7 {[%clk 0:02:56]} 19. Rd2 {[%clk
0:06:39.2]} 19... Bf6 {[%clk 0:02:28.2]} 20. Rad1 {[%clk 0:06:24.1]} 20... Rb7
{[%clk 0:02:27.3]} 21. Rd6 {[%clk 0:06:08.8]} 21... Rc8 {[%clk 0:02:06.4]} 22.
Qg4 {[%clk 0:05:41.4]} 22... Rd8 {[%clk 0:01:49.5]} 23. Rxd8+ {[%clk 0:05:32.6]}
23... Bxd8 {[%clk 0:01:51.4]} 24. Bd4 {[%clk 0:05:28.4]} 24... g6 {[%clk
0:01:32.6]} 25. Qe4 {[%clk 0:05:07.3]} 25... Qe7 {[%clk 0:01:14]} 26. Qxc6
{[%clk 0:05:00]} 26... Qxe2 {[%clk 0:01:14.4]} 27. Qxb7 {[%clk 0:04:19.6]} 27...
Qxd1+ {[%clk 0:01:12.4]} 28. Kg2 {[%clk 0:04:21.5]} 28... Qd3 {[%clk 0:01:07.7]}
29. Qa8 {[%clk 0:04:15.9]} 29... Qe4+ {[%clk 0:00:49.1]} 30. Qxe4 {[%clk
0:04:12.7]} 1-0

[Event "GrandPrix_30.05"]
[Site "Chess.com"]
[Date "2020.05.30"]
[Round "7"]
[White "Iljin_Timofey"]
[Black "Winawer81"]
[Result "1-0"]
[WhiteElo "2256"]
[BlackElo "2139"]
[TimeControl "600+2"]
[EndTime "11:23:23 PDT"]
[Termination "Iljin_Timofey won by resignation"]

1. d4 {[%clk 0:10:01.9]} 1... Nf6 {[%clk 0:09:59.8]} 2. c4 {[%clk 0:10:03.8]}
2... e6 {[%clk 0:09:59.1]} 3. Nc3 {[%clk 0:10:04.7]} 3... Bb4 {[%clk 0:09:59.1]}
4. e3 {[%clk 0:10:04.9]} 4... O-O {[%clk 0:09:58.9]} 5. a3 {[%clk 0:10:04.6]}
5... Bxc3+ {[%clk 0:09:55.2]} 6. bxc3 {[%clk 0:10:06.5]} 6... Nc6 {[%clk
0:09:46.7]} 7. Bd3 {[%clk 0:10:06.1]} 7... d6 {[%clk 0:09:31.6]} 8. Ne2 {[%clk
0:10:04.6]} 8... e5 {[%clk 0:09:30.2]} 9. e4 {[%clk 0:10:04.6]} 9... Qe8 {[%clk
0:09:20.7]} 10. f3 {[%clk 0:09:57.9]} 10... b6 {[%clk 0:09:05.4]} 11. O-O {[%clk
0:09:56.2]} 11... Ba6 {[%clk 0:09:04.4]} 12. Bg5 {[%clk 0:09:55.5]} 12... Nd7
{[%clk 0:09:02]} 13. Bh4 {[%clk 0:09:36.3]} 13... Na5 {[%clk 0:08:57.3]} 14. f4
{[%clk 0:09:31]} 14... Bxc4 {[%clk 0:08:41.1]} 15. fxe5 {[%clk 0:09:27.4]} 15...
dxe5 {[%clk 0:08:38.9]} 16. Ng3 {[%clk 0:09:26.9]} 16... f6 {[%clk 0:08:06.6]}
17. Nf5 {[%clk 0:09:20.8]} 17... Be6 {[%clk 0:08:00.9]} 18. Rf3 {[%clk 0:08:48]}
18... Rc8 {[%clk 0:07:36.9]} 19. Ba6 {[%clk 0:08:38.7]} 19... Rd8 {[%clk
0:07:35.1]} 20. Qe2 {[%clk 0:08:31.5]} 20... Nb8 {[%clk 0:07:01.7]} 21. Bb5
{[%clk 0:08:07.7]} 21... c6 {[%clk 0:06:58.3]} 22. Bd3 {[%clk 0:08:08]} 22...
Nb3 {[%clk 0:06:22.2]} 23. Raf1 {[%clk 0:07:57.1]} 23... exd4 {[%clk 0:05:38.8]}
24. Nxg7 {[%clk 0:07:29.1]} 24... Kxg7 {[%clk 0:05:10.8]} 25. Rxf6 {[%clk
0:07:29.2]} 25... Rxf6 {[%clk 0:04:44]} 26. Bxf6+ {[%clk 0:07:31.1]} 26... Kg8
{[%clk 0:04:43.3]} 27. Bxd8 {[%clk 0:06:41.4]} 27... Qxd8 {[%clk 0:04:39.6]} 28.
e5 {[%clk 0:06:29.7]} 28... Nd7 {[%clk 0:04:24.6]} 29. Bc4 {[%clk 0:05:53.6]}
29... Bd5 {[%clk 0:02:33.2]} 30. e6 {[%clk 0:04:51.2]} 30... Ne5 {[%clk
0:00:40.8]} 31. Qxe5 {[%clk 0:04:29.5]} 31... Bxc4 {[%clk 0:00:40.1]} 32. e7
{[%clk 0:04:30.4]} 32... Qe8 {[%clk 0:00:33.5]} 33. Qg5+ {[%clk 0:04:30.6]} 1-0